[Event "Czech Extraliga 2023-24"]
[Site "Czech Republic"]
[Date "2024.04.06"]
[Round "10.6"]
[White "Biolek, Richard Jr."]
[Black "Smolik, Jachym"]
[Result "1/2-1/2"]
[ECO "B11"]
[WhiteElo "2416"]
[BlackElo "2351"]
[Annotator "TA"]
[PlyCount "35"]
[EventDate "2023.10.14"]
[EventCountry "CZE"]
[SourceTitle "playchess.com"]
[Source "ChessBase"]
[SourceQuality "1"]
[TimeControl "40/5400+30:1800+30"]

{[%evp 10,35,21,16,18,0,0,-22,6,0,28,21,29,26,38,21,35,30,48,-7,-21,-34,0,-27,8,4,78,-43]} 1. e4 {[%emt 0:00:01]} c6 {[%emt 0:00:05]} 2. Nc3 {[%emt 0:00:17]} d5 {[%emt 0:00:07]} 3. Nf3 {[%emt 0:00:03]} Bg4 {[%emt 0:00:09]} 4. h3 {[%emt 0:00:03]} Bxf3 {[%emt 0:00:07]} 5. Qxf3 {[%emt 0:00:03]} e6 {[%emt 0:00:09]} 6. g3 {[%emt 0:00:03]} Nd7 {[%emt 0:01:27]} 7. Bg2 {[%emt 0:20:58]} d4 {[%emt 0:08:53]} 8. Nd1 {[%emt 0:04:01]} Ne7 {[%emt 0:09:48] The position is equal.} 9. d3 {[%emt 0:04:37]} Ng6 {[%emt 0:01:47]} 10. O-O {[%emt 0:00:04]} h5 {[%emt 0:05:23]} 11. h4 $1 {[%emt 0:02:38]} Qc7 {[%emt 0:03:37]} 12. a4 {[%emt 0:06:11]} Be7 {[%emt 0:06:02]} 13. Qe2 {[%emt 0:07:14]} e5 {[%emt 0:02:26]} 14. f3 {[%emt 0:03:44] White is weak on the dark squares} (14. Bd2 $14) 14... O-O-O $11 {[%emt 0:01:09]} 15. Nf2 {[%emt 0:00:03]} f6 {[%emt 0:03:14]} 16. Nh3 {[%emt 0:09:52]} Bd6 {[%emt 0:00:53]} 17. Bd2 {[%emt 0:04:36]} c5 {[%emt 0:03:16]} (17... Kb8 $11 {keeps the balance.}) 18. b3 {[%emt 0:03:27] Weighted Error Value: White=0.17 (very precise) /Black=0.25 (precise) .  Mistake:       	White=2     	Black=1      Inaccurate:     	White=1     	Black=4      OK:         	White=2     	Black=2      Strong:       	White=1     	---} (18. c3 $16) 1/2-1/2

[Event "Czech Extraliga 2023-24"]
[Site "Czech Republic"]
[Date "2024.04.06"]
[Round "10.6"]
[White "Finek, Vaclav"]
[Black "Slovak, Kilian"]
[Result "1-0"]
[ECO "E60"]
[WhiteElo "2416"]
[BlackElo "2289"]
[Annotator "RC"]
[PlyCount "147"]
[EventDate "2023.10.14"]
[EventCountry "CZE"]
[SourceTitle "playchess.com"]
[Source "ChessBase"]
[SourceQuality "1"]
[TimeControl "40/5400+30:1800+30"]

1. d4 {[%emt 0:02:15]} Nf6 {[%emt 0:00:08]} 2. c4 {[%emt 0:00:08]} g6 {[%emt 0:00:05]} 3. g3 {[%emt 0:00:09]} Bg7 {[%emt 0:00:07]} 4. Bg2 {[%emt 0:00:06]} O-O {[%emt 0:00:10]} 5. Nf3 {[%emt 0:00:25]} d6 {[%emt 0:00:09]} 6. O-O {[%emt 0:00:05]} Bf5 {[%emt 0:00:29]} 7. Nh4 {[%emt 0:16:09]} Be4 {[%emt 0:00:28]} 8. Bh3 {[%emt 0:01:41]} Bc6 {[%emt 0:08:06]} 9. Nc3 {[%emt 0:02:55]} e5 {[%emt 0:00:36]} 10. dxe5 {[%emt 0:11:10]} dxe5 {[%emt 0:00:11]} 11. Qb3 {[%emt 0:00:14]} Nbd7 {[%emt 0:07:17]} 12. Rd1 {[%emt 0:00:07]} Qe7 {[%emt 0:07:48]} 13. Be3 {[%emt 0:02:02]} b6 {[%emt 0:03:25]} 14. Nd5 {[%emt 0:01:02]} Nxd5 {[%emt 0:06:28]} 15. cxd5 {[%emt 0:00:06]} Bb7 {[%emt 0:00:09]} 16. Rac1 {[%emt 0:00:08]} Nf6 {[%emt 0:15:10]} 17. Bg2 {[%emt 0:17:26]} Ne8 {[%emt 0:04:04]} 18. Bc5 {[%emt 0:11:42]} Nd6 {[%emt 0:00:38]} 19. Bxd6 {[%emt 0:01:17]} cxd6 {[%emt 0:01:37]} 20. e4 {[%emt 0:00:05]} Qd7 {[%emt 0:04:18]} 21. Bf1 {[%emt 0:06:55]} Rac8 {[%emt 0:05:08]} 22. Bb5 {[%emt 0:01:07]} Qe7 {[%emt 0:00:07]} 23. Bc6 {[%emt 0:02:08]} Ba6 {[%emt 0:02:35]} 24. Bb5 {[%emt 0:05:17]} Bb7 {[%emt 0:00:36]} 25. Qe3 {[%emt 0:02:11]} f5 {[%emt 0:03:19]} 26. Bc6 {[%emt 0:06:30]} Ba6 {[%emt 0:03:24]} 27. Rc2 {[%emt 0:00:05]} Rc7 {[%emt 0:00:40]} 28. Rdc1 {[%emt 0:03:37]} fxe4 {[%emt 0:03:38]} 29. Qxe4 {[%emt 0:00:31]} Bh6 {[%emt 0:01:16]} 30. Re1 {[%emt 0:00:50]} Bc8 {[%emt 0:02:02]} 31. Bb5 {[%emt 0:01:52]} Bh3 {[%emt 0:09:27]} 32. Bf1 {[%emt 0:01:23]} Rxc2 {[%emt 0:00:53]} 33. Qxc2 {[%emt 0:00:02]} Rc8 {[%emt 0:02:21]} 34. Qe4 {[%emt 0:00:28]} Bd7 {[%emt 0:03:41]} 35. Bd3 {[%emt 0:02:06]} Qf7 {[%emt 0:01:22]} 36. Kg2 {[%emt 0:01:24]} Rf8 {[%emt 0:00:40]} 37. Re2 {[%emt 0:02:15]} Bg5 {[%emt 0:02:03]} 38. Nf3 {[%emt 0:00:59]} Bf5 {[%emt 0:02:16]} 39. Qc4 {[%emt 0:00:05]} Bh3+ {[%emt 0:02:36]} 40. Kxh3 {[%emt 0:00:06]} Qxf3 {[%emt 0:00:02]} 41. Be4 {[%emt 0:31:04]} Qh5+ {[%emt 0:04:10]} 42. Kg2 {[%emt 0:00:00]} Qg4 {[%emt 0:00:27]} 43. Qd3 {[%emt 0:00:00]} Kg7 {[%emt 0:02:34]} 44. Rc2 {[%emt 0:00:00]} Qd7 {[%emt 0:02:39]} 45. Rc6 {[%emt 0:00:00]} Bd8 {[%emt 0:08:18]} 46. b4 {[%emt 0:00:00]} Rf6 {[%emt 0:02:31]} 47. a4 {[%emt 0:00:00]} Qf7 {[%emt 0:02:41]} 48. Qc2 {[%emt 0:00:00]} Qd7 {[%emt 0:01:23]} 49. Qe2 {[%emt 0:00:00]} Rf7 {[%emt 0:01:29]} 50. h4 {[%emt 0:00:00]} h5 {[%emt 0:00:59]} 51. Qc2 {[%emt 0:00:00]} Rf6 {[%emt 0:01:08]} 52. Rc8 {[%emt 0:00:00]} Kh6 {[%emt 0:05:18]} 53. f3 {[%emt 0:00:00]} Kg7 {[%emt 0:00:04]} 54. Qc6 {[%emt 0:01:57]} Rf7 {[%emt 0:01:18]} 55. Ra8 {[%emt 0:03:35]} Bf6 {[%emt 0:01:37]} 56. Bd3 {[%emt 0:00:58]} g5 {[%emt 0:00:30]} 57. Qc4 {[%emt 0:00:57]} Rf8 {[%emt 0:01:27]} 58. Qe4 {[%emt 0:00:18]} Kg8 {[%emt 0:00:02]} 59. Rxf8+ {[%emt 0:00:50]} Kxf8 {[%emt 0:00:01]} 60. hxg5 {[%emt 0:00:13]} Bxg5 {[%emt 0:00:14]} 61. Qg6 {[%emt 0:00:05]} Bd2 {[%emt 0:01:41]} 62. Qf6+ {[%emt 0:00:14]} Kg8 {[%emt 0:00:49]} 63. Bf5 {[%emt 0:00:14]} Qg7 {[%emt 0:00:18]} 64. Qxd6 {[%emt 0:01:00]} Qf8 {[%emt 0:00:51]} 65. Qg6+ {[%emt 0:00:54]} Qg7 {[%emt 0:00:01]} 66. Qe8+ {[%emt 0:00:14]} Qf8 {[%emt 0:00:02]} 67. Qxh5 {[%emt 0:00:25]} Qf6 {[%emt 0:01:24]} 68. Qg4+ {[%emt 0:01:17]} Kf8 {[%emt 0:00:01]} 69. Be6 {[%emt 0:00:11]} Bg5 {[%emt 0:00:06]} 70. Qc4 {[%emt 0:00:34]} Kg7 {[%emt 0:01:08]} 71. d6 {[%emt 0:01:01]} Qg6 {[%emt 0:00:48]} 72. d7 {[%emt 0:00:51]} Bf4 {[%emt 0:00:24]} 73. Bg4 {[%emt 0:00:28]} Bg5 {[%emt 0:00:02]} 74. Qc7 {[%emt 0:00:06]} 1-0

[Event "Czech Extraliga 2023-24"]
[Site "Czech Republic"]
[Date "2024.04.06"]
[Round "10.6"]
[White "Gnojek, Petr"]
[Black "Rydl, Jiri"]
[Result "1/2-1/2"]
[ECO "D43"]
[WhiteElo "2410"]
[BlackElo "2410"]
[Annotator "TA"]
[PlyCount "100"]
[EventDate "2023.10.14"]
[EventCountry "CZE"]
[SourceTitle "playchess.com"]
[Source "ChessBase"]
[SourceQuality "1"]
[TimeControl "40/5400+30:1800+30"]

{[%evp 23,100,1,15,8,8,14,20,16,35,0,31,18,97,66,67,95,109,58,49,76,49,32,9,0,47,29,26,25,29,43,67,20,117,94,67,59,69,8,8,0,0,0,0,0,0,0,0,0,0,0,0,0,0,0,0,0,0,0,0,0,0,0,0,0,0,0,0,0,0,0,0,0,0,0,0,0,0,0,0]} 1. d4 {[%emt 0:00:06]} d5 {[%emt 0:00:23]} 2. c4 {[%emt 0:00:09]} c6 {[%emt 0:00:04]} 3. Nf3 {[%emt 0:00:11]} Nf6 {[%emt 0:00:08]} 4. Nc3 {[%emt 0:00:06]} e6 {[%emt 0:00:25]} 5. Bg5 {[%emt 0:00:15][%cal Bc1g5,Bg5h4,Bh4g3][%mdl 32]} h6 {[%emt 0:01:04]} 6. Bh4 {[%emt 0:00:18]} dxc4 {[%emt 0:01:06]} 7. e4 {[%emt 0:00:11]} g5 {[%emt 0:00:20]} 8. Bg3 {[%emt 0:00:07]} b5 {[%emt 0:00:06]} 9. Be2 {[%emt 0:00:12]} Bb7 {[%emt 0:00:55]} 10. h4 {[%emt 0:01:43]} g4 {[%emt 0:00:53]} 11. Ne5 {[%emt 0:00:10]} h5 {[%emt 0:00:12]} 12. O-O {[%emt 0:13:09]} Nbd7 {[%emt 0:00:36]} 13. Qc2 {[%emt 0:03:09]} Nxe5 {[%emt 0:02:36]} 14. Bxe5 {[%emt 0:00:06]} Bg7 {[%emt 0:00:52]} 15. Rad1 {[%emt 0:22:51]} O-O {[%emt 0:04:48]} 16. g3 {[%emt 0:06:41]} a6 {[%emt 0:10:05]} 17. f3 {[%emt 0:01:12] With the idea fxg4.} Ne8 {[%emt 0:04:11]} (17... c5 $11 {remains equal.}) 18. Bxg7 {[%emt 0:02:36]} Nxg7 {[%emt 0:03:39]} 19. fxg4 {[%emt 0:00:06]} hxg4 {[%emt 0:15:14]} 20. e5 {[%emt 0:12:26]} (20. Bxg4 $16 {Black must now prevent e5.} Qe7 21. e5) 20... f5 $14 {[%emt 0:00:24][%cal Oc6c5]} 21. exf6 {[%emt 0:00:05]} Rxf6 {[%emt 0:00:06]} 22. Rxf6 {[%emt 0:00:07]} Qxf6 {[%emt 0:00:04]} 23. Qe4 {[%emt 0:00:17]} Rd8 {[%emt 0:04:24]} (23... Rf8 $11 24. Rf1 (24. Qxg4 $2 Qf2+ 25. Kh1 c5+ 26. d5 exd5 $19) 24... Nf5) 24. Qe5 {[%emt 0:06:39]} Qxe5 {[%emt 0:00:48]} 25. dxe5 {[%emt 0:00:04]} Rxd1+ {[%emt 0:00:15]} 26. Bxd1 $11 {[%emt 0:00:08][%mdl 4096] Endgame. KBN-KBN} ({Much worse is} 26. Nxd1 c5 $15) 26... c5 $1 {[%emt 0:00:43]} ({But not} 26... b4 $2 27. Na4 $18) 27. Bxg4 {[%emt 0:00:44]} Bc6 {[%emt 0:02:21]} (27... Nf5 $1 $11) 28. Kf2 $16 {[%emt 0:00:36]} b4 {[%emt 0:00:31]} 29. Ne2 {[%emt 0:07:08]} Bd5 {[%emt 0:01:59]} 30. Ke1 {[%emt 0:04:05]} (30. Nf4 $14) 30... a5 {[%emt 0:06:12] The position is equal.} 31. a4 {[%emt 0:02:28]} Bc6 {[%emt 0:03:01]} 32. Nf4 {[%emt 0:05:07]} Bxa4 {[%emt 0:00:45] ...Bb3 is the strong threat.} 33. Kd2 $1 {[%emt 0:03:01]} Bb3 {[%emt 0:04:44]} 34. Kc1 $1 {[%emt 0:01:45]} (34. Bxe6+ $2 {loses.} Nxe6 35. Nd5 a4 (35... c3+ $2 36. Nxc3 bxc3+ 37. Kxc3 $19) 36. Ne7+ Kh7 $19) 34... c3 {[%emt 0:01:45]} 35. bxc3 {[%emt 0:03:02]} Bc4 {[%emt 0:00:19] Prevents Nd3.} 36. cxb4 {[%emt 0:01:59]} cxb4 {[%emt 0:01:08]} 37. Ng2 {[%emt 0:00:04]} Kf7 {[%emt 0:04:52]} 38. Ne3 {[%emt 0:00:07]} Bd3 {[%emt 0:00:37]} 39. Kd2 {[%emt 0:02:23]} Bb5 {[%emt 0:00:36]} 40. Nc2 {[%emt 0:01:28]} Bc4 {[%emt 0:01:07]} 41. h5 {[%emt 0:14:13] [#] aiming for Ne3.} Kg8 {[%emt 0:08:37]} 42. h6 {[%emt 0:01:54]} Nf5 {[%emt 0:03:17]} 43. Bxf5 {[%emt 0:00:43]} exf5 $11 {[%emt 0:00:04] KB-KN} 44. Nd4 {[%emt 0:05:13]} a4 {[%emt 0:02:35]} 45. Kc1 {[%emt 0:00:12]} a3 {[%emt 0:12:16] [#] Strongly threatening ...b3.} 46. Nc2 {[%emt 0:00:06]} Kh7 {[%emt 0:00:05]} 47. Nxb4 {[%emt 0:00:10]} Kxh6 {[%emt 0:00:06]} 48. Nc2 {[%emt 0:00:05]} a2 {[%emt 0:00:09]} 49. Kb2 {[%emt 0:00:03]} Kg5 {[%emt 0:00:15]} 50. Nd4 {[%emt 0:00:06]} Kg4 {[%emt 0:00:13] Weighted Error Value: White=0.08 (flawless) /Black=0.12 (very precise) .  Mistake:       	White=2     	Black=3      Inaccurate:     	White=2     	Black=1      OK:         	White=17    	Black=14     Best:        	White=4     	Black=1      Strong:       	White=2     	Black=1} 1/2-1/2

[Event "Czech Extraliga 2023-24"]
[Site "Czech Republic"]
[Date "2024.04.06"]
[Round "10.6"]
[White "Burdalev, Kirill"]
[Black "Nemec, Jachym"]
[Result "0-1"]
[ECO "D45"]
[WhiteElo "2338"]
[BlackElo "2416"]
[Annotator "RC"]
[PlyCount "60"]
[EventDate "2023.10.14"]
[EventCountry "CZE"]
[SourceTitle "playchess.com"]
[Source "ChessBase"]
[SourceQuality "1"]
[TimeControl "40/5400+30:1800+30"]

1. d4 {[%emt 0:01:12]} d5 {[%emt 0:00:08]} 2. c4 {[%emt 0:01:43]} e6 {[%emt 0:00:39]} 3. Nf3 {[%emt 0:01:44]} Nf6 {[%emt 0:00:16]} 4. e3 {[%emt 0:00:32]} c6 {[%emt 0:01:39]} 5. Nc3 {[%emt 0:00:52]} Nbd7 {[%emt 0:00:08]} 6. Be2 {[%emt 0:00:10]} dxc4 {[%emt 0:01:11]} 7. a4 {[%emt 0:00:05]} Bb4 {[%emt 0:04:02]} 8. Bxc4 {[%emt 0:01:06]} O-O {[%emt 0:01:12]} 9. O-O {[%emt 0:01:10]} b6 {[%emt 0:04:22]} 10. Qe2 {[%emt 0:14:53]} c5 {[%emt 0:11:15]} 11. d5 {[%emt 0:18:44]} Bxc3 {[%emt 0:09:42]} 12. dxe6 {[%emt 0:00:10]} Ne5 {[%emt 0:00:14]} 13. Rd1 {[%emt 0:15:06]} Qe7 {[%emt 0:08:07]} 14. bxc3 {[%emt 0:02:26]} Nxc4 {[%emt 0:03:49]} 15. Qxc4 {[%emt 0:00:07]} Bxe6 {[%emt 0:00:05]} 16. Qh4 {[%emt 0:06:22]} Bg4 {[%emt 0:06:16]} 17. h3 {[%emt 0:09:00]} Bxf3 {[%emt 0:05:01]} 18. gxf3 {[%emt 0:00:03]} Qe5 {[%emt 0:01:38]} 19. Bd2 {[%emt 0:04:54]} Rad8 {[%emt 0:06:43]} 20. Be1 {[%emt 0:00:04]} Qf5 {[%emt 0:00:47]} 21. Kg2 {[%emt 0:06:20]} Rfe8 {[%emt 0:05:02]} 22. c4 {[%emt 0:11:10]} Qc2 {[%emt 0:10:52]} 23. Rdc1 {[%emt 0:02:33]} Qe2 {[%emt 0:01:31]} 24. Qf4 {[%emt 0:01:05]} Re6 {[%emt 0:00:58]} 25. Bc3 {[%emt 0:00:51]} Nh5 {[%emt 0:02:46]} 26. Qh4 {[%emt 0:00:01]} Rg6+ {[%emt 0:01:09]} 27. Kh2 {[%emt 0:00:01]} Rd3 {[%emt 0:03:36]} 28. f4 {[%emt 0:01:01]} Ng3 {[%emt 0:03:55]} 29. Rg1 {[%emt 0:00:18]} Qxf2+ {[%emt 0:00:08]} 30. Rg2 {[%emt 0:00:13]} Nf1+ {[%emt 0:00:04]} 0-1

[Event "Czech Extraliga 2023-24"]
[Site "Czech Republic"]
[Date "2024.04.06"]
[Round "10.7"]
[White "Kaczur, Florian"]
[Black "Velicka, Petr"]
[Result "1/2-1/2"]
[ECO "A11"]
[WhiteElo "2532"]
[BlackElo "2369"]
[Annotator "TA"]
[PlyCount "99"]
[EventDate "2023.10.14"]
[EventCountry "CZE"]
[SourceTitle "playchess.com"]
[Source "ChessBase"]
[SourceQuality "1"]
[TimeControl "40/5400+30:1800+30"]

{[%evp 18,99,31,33,23,22,49,39,33,30,38,32,68,69,74,37,56,24,24,31,27,19,47,30,51,46,49,0,49,52,62,60,76,82,91,68,57,39,47,52,55,27,27,-58,-59,-59,-20,-33,-18,-362,-313,-387,0,-44,-26,-73,-78,-75,-64,-60,-45,-103,-80,-81,-97,-98,-97,-107,-64,-122,-75,-149,-149,-149,-149,-149,-149,-148,-111,-149,-146,-161,-154,-148]} 1. Nf3 {[%emt 0:00:10]} d5 {[%emt 0:00:11]} 2. g3 {[%emt 0:00:28]} Nf6 {[%emt 0:00:08]} 3. Bg2 {[%emt 0:00:42]} Bg4 {[%emt 0:00:24]} 4. c4 {[%emt 0:00:43]} c6 {[%emt 0:00:10]} 5. Ne5 {[%emt 0:00:24]} Be6 {[%emt 0:00:06]} 6. cxd5 {[%emt 0:00:05]} Bxd5 {[%emt 0:00:06]} 7. Nf3 {[%emt 0:00:05]} c5 {[%emt 0:00:05]} 8. Nc3 {[%emt 0:00:05] A11: English Opening: 1...c6.} Bc6 {[%emt 0:00:04]} 9. O-O {[%emt 0:00:17]} e6 {[%emt 0:00:18]} 10. Re1 {[%emt 0:01:45]} Nbd7 {[%emt 0:04:17]} 11. e4 {[%emt 0:01:43]} e5 {[%emt 0:00:15]} 12. a4 {[%emt 0:07:10]} Bd6 {[%emt 0:03:43]} 13. d3 {[%emt 0:00:30]} O-O {[%emt 0:00:12]} 14. Nd2 {[%emt 0:00:47]} a6 $146 {[%emt 0:09:31]} ({Predecessor:} 14... Re8 15. Nc4 Bf8 16. Be3 b6 17. Qb3 a6 18. Nd5 Rb8 19. Bd2 Ba8 20. Bc3 b5 21. axb5 axb5 {0-1 Ding,L (2777)-Andreikin,D (2712) Huaian IMSA blitz 2nd 2017 (17)}) 15. Nc4 {[%emt 0:09:49]} Bc7 {[%emt 0:01:35]} 16. Ne3 {[%emt 0:15:25]} b5 {[%emt 0:01:38]} 17. axb5 {[%emt 0:04:21]} axb5 {[%emt 0:00:07]} 18. Rxa8 {[%emt 0:00:18]} Qxa8 {[%emt 0:01:17]} 19. Ncd5 {[%emt 0:01:05]} Ba5 {[%emt 0:16:28]} 20. Ne7+ {[%emt 0:02:19]} Kh8 {[%emt 0:00:08]} 21. Rf1 {[%emt 0:05:02]} Bb7 {[%emt 0:01:11]} 22. Ng4 {[%emt 0:07:32]} (22. Qb3 $14) 22... Bd8 {[%emt 0:06:44]} (22... Qe8 $11 {feels stronger.} 23. Nf5 Qe6) 23. Nxf6 $14 {[%emt 0:04:05]} Nxf6 {[%emt 0:00:32]} 24. Nf5 {[%emt 0:00:05]} Bc6 {[%emt 0:05:45]} 25. Be3 {[%emt 0:03:49]} Nd7 {[%emt 0:00:13]} 26. Qc2 {[%emt 0:10:59]} g6 {[%emt 0:12:21]} 27. Bxc5 {[%emt 0:04:51]} gxf5 {[%emt 0:01:15]} 28. Bxf8 {[%emt 0:00:06]} Nxf8 {[%emt 0:00:07]} 29. Rc1 {[%emt 0:01:23]} Bb7 {[%emt 0:01:15] [#]} 30. d4 {[%emt 0:10:40]} (30. Qc5 $1 $11 Bf6 31. Qa3 (31. Qxb5 fxe4 32. Qb4 Kg7 $16) 31... Qxa3 32. bxa3) 30... fxe4 $15 {[%emt 0:09:54]} 31. Qc5 {[%emt 0:00:49]} Bf6 {[%emt 0:00:31]} 32. dxe5 {[%emt 0:01:34]} Ne6 {[%emt 0:00:29]} 33. Qd6 $2 {[%emt 0:04:11][%mdl 8192]} (33. Qxb5 $11 Nd4 34. Qb6 Bxe5 35. Rd1) 33... Bg5 $19 {[%emt 0:01:11]} 34. Rd1 {[%emt 0:01:04]} Qa4 $2 {[%emt 0:15:49]} ({Black should try} 34... e3 $19 35. Bh3 e2) 35. h4 {[%emt 0:01:03]} Be7 {[%emt 0:00:25]} 36. Qxe7 {[%emt 0:02:00]} (36. Qd7 $11 {is superior.} Bc6 37. Qc8+ Nf8 (37... Kg7 38. Rc1 $15) 38. Re1) 36... Qxd1+ $17 {[%emt 0:00:18]} 37. Kh2 {[%emt 0:00:03]} Bc6 {[%emt 0:04:13]} 38. Qxf7 {[%emt 0:00:18]} Qd7 $1 {[%emt 0:00:34]} 39. Qf6+ {[%emt 0:00:54]} (39. Qf5 $15) 39... Kg8 $17 {[%emt 0:00:12]} 40. Bh3 {[%emt 0:01:10]} Bd5 {[%emt 0:00:38]} 41. Qh6 {[%emt 0:03:05]} Qf7 {[%emt 0:02:00]} 42. Qd2 {[%emt 0:01:27]} Nf8 {[%emt 0:01:51]} 43. Kg1 {[%emt 0:03:18] [#]} (43. e6 $1 $15 Bxe6 44. Qg5+ Ng6 45. h5 Qxf2+ (45... Bxh3 46. Kxh3 Qe6+ 47. Kg2 $11) 46. Bg2) 43... Be6 {[%emt 0:05:13]} (43... Ng6 $142 $1 {[%cal Od5e6]} 44. h5 Ne7 (44... Nxe5 45. Qg5+ Ng6 46. hxg6 $16)) 44. Bg2 {[%emt 0:02:25]} (44. Bf1 $142) 44... Qf5 $17 {[%emt 0:00:14]} 45. Qd4 {[%emt 0:01:35]} Nd7 {[%emt 0:01:05]} 46. Bxe4 {[%emt 0:01:11]} Qxe5 {[%emt 0:00:13]} 47. Qb4 {[%emt 0:04:27]} Nf6 {[%emt 0:01:23]} 48. Bc6 {[%emt 0:02:57]} Bc4 {[%emt 0:00:42]} 49. Qd2 {[%emt 0:03:24]} Kf7 {[%emt 0:01:11]} 50. Bf3 {[%emt 0:00:28]} 1/2-1/2

[Event "Czech Extraliga 2023-24"]
[Site "Czech Republic"]
[Date "2024.04.06"]
[Round "10.7"]
[White "Jirovsky, Milos"]
[Black "Konopka, Michal"]
[Result "1/2-1/2"]
[ECO "D70"]
[WhiteElo "2450"]
[BlackElo "2346"]
[Annotator "TA"]
[PlyCount "91"]
[EventDate "2023.10.14"]
[EventCountry "CZE"]
[SourceTitle "playchess.com"]
[Source "ChessBase"]
[SourceQuality "1"]
[TimeControl "40/5400+30:1800+30"]

{[%evp 12,91,46,20,31,34,39,26,48,12,23,9,18,1,25,6,22,25,18,13,35,33,32,33,31,27,29,35,26,-6,-2,-10,-12,-12,14,4,6,8,6,11,19,16,25,9,20,14,17,0,25,18,54,57,51,54,55,55,57,0,8,8,104,0,0,0,0,0,80,77,70,0,0,0,0,0,0,0,0,0,0,-22,-22,-22]} 1. c4 {[%emt 0:00:02]} c6 {[%emt 0:00:37]} 2. Nf3 {[%emt 0:00:12]} d5 {[%emt 0:03:07]} 3. e3 {[%emt 0:00:43]} g6 {[%emt 0:04:00]} 4. d4 {[%emt 0:02:35]} Nf6 {[%emt 0:01:47]} 5. Bd3 {[%emt 0:01:58]} Bg7 {[%emt 0:00:35]} 6. O-O {[%emt 0:00:56]} O-O {[%emt 0:00:39]} 7. Nbd2 {[%emt 0:00:52]} Bg4 {[%emt 0:11:56][%cal Oc6c5]} 8. h3 {[%emt 0:05:00]} Bxf3 {[%emt 0:04:59]} 9. Nxf3 {[%emt 0:01:37]} c5 {[%emt 0:02:06] White has an edge.} 10. b3 {[%emt 0:05:04]} cxd4 {[%emt 0:01:56]} 11. exd4 {[%emt 0:01:20]} Nc6 {[%emt 0:03:06]} 12. Bb2 {[%emt 0:06:11]} e6 {[%emt 0:04:29]} 13. Rc1 {[%emt 0:02:27]} Rc8 {[%emt 0:03:13]} 14. Re1 {[%emt 0:00:58]} Qc7 {[%emt 0:12:43]} 15. c5 {[%emt 0:08:44]} Nd7 {[%emt 0:10:20]} 16. a3 {[%emt 0:02:06]} e5 {[%emt 0:01:22]} 17. dxe5 {[%emt 0:03:08]} Ndxe5 {[%emt 0:00:42]} 18. Nxe5 {[%emt 0:00:50]} Nxe5 {[%emt 0:00:08]} 19. Bxe5 {[%emt 0:02:05]} Bxe5 {[%emt 0:00:10]} 20. b4 {[%emt 0:03:57]} Bb2 $1 {[%emt 0:05:07][%csl LRa3,LRc1]} 21. Rb1 {[%emt 0:00:50]} Bc3 {[%emt 0:00:06]} 22. Re2 {[%emt 0:00:13]} Rfe8 {[%emt 0:00:10]} 23. Qb3 {[%emt 0:05:56][%csl LRc3,LRd5]} Rxe2 {[%emt 0:04:31]} 24. Bxe2 {[%emt 0:00:05]} d4 {[%emt 0:00:09]} 25. Bf3 {[%emt 0:02:02]} Re8 {[%emt 0:03:36]} 26. Qd5 {[%emt 0:02:19]} Re7 {[%emt 0:00:44]} 27. g3 {[%emt 0:03:46]} Rd7 {[%emt 0:01:39]} 28. Qc4 {[%emt 0:01:22][%cal Of3b7]} Qe5 {[%emt 0:04:24] aiming for ...Qf5.} 29. Kg2 {[%emt 0:05:23]} Rc7 {[%emt 0:03:56]} 30. Rc1 {[%emt 0:02:58] Black is weak on the light squares} a5 {[%emt 0:04:07]} 31. Rc2 {[%emt 0:01:14]} axb4 {[%emt 0:00:17]} 32. axb4 {[%emt 0:00:13]} Qe6 {[%emt 0:06:20]} 33. Qb5 {[%emt 0:03:55]} Kg7 {[%emt 0:02:10]} 34. Re2 {[%emt 0:04:01]} (34. Bxb7 $14 Re7 35. Bf3) 34... Qa6 {[%emt 0:00:02]} 35. Qe8 {[%emt 0:02:14]} d3 {[%emt 0:00:33] [#]} (35... Qf6 $1 $11) 36. Re5 {[%emt 0:02:18]} Qf6 {[%emt 0:01:30] Against Qd8} (36... Bxb4 $2 37. Qd8 Rxc5 38. Re8 $18) 37. Rd5 {[%emt 0:04:07] And now Rd8 would win.} Re7 {[%emt 0:00:08][%cal Bc7e7,Be7e1,Be1c1,Bc1c3][%mdl 32]} (37... Bxb4 38. Rd8 (38. Rxd3 Qe7 $11) 38... Kh6 39. Qf8+ (39. Rxd3 Bxc5 40. Rd5 Bd6 $11) 39... Qg7 40. Qd6 Bxc5 41. Qf4+ (41. Qxc7 Qf6 $18) 41... g5 42. Qxc7 $18) 38. Qb5 {[%emt 0:01:35]} d2 {[%emt 0:00:10] [#]} (38... Be1 $11 39. Qxd3 (39. Rxd3 $2 Qb2 $19) 39... Bxb4) 39. Qc4 $1 $16 {[%emt 0:00:47]} Re1 {[%emt 0:01:33]} 40. b5 {[%emt 0:01:57]} (40. Rd6 $1 $14 Qe5 41. Rd7 (41. Bxb7 $2 {loses.} d1=Q $19)) 40... Rc1 $11 {[%emt 0:00:19] The position is equal.} 41. Rd7 {[%emt 0:37:55][%cal Oc4d5]} Ba5 $36 {[%emt 0:15:22][%cal Bc3a5,Ba5b4,Bb4c5][%mdl 2080] Black has some pressure.} 42. Qa2 {[%emt 0:00:00]} Bb4 {[%emt 0:07:31]} 43. c6 {[%emt 0:00:00]} ({Much weaker is} 43. Qb3 Rc3 (43... Bxc5 44. Rxd2 Rc3 45. Qd1 $11) 44. Qd1 Rxc5 $17) 43... bxc6 {[%emt 0:00:30]} 44. b6 {[%emt 0:00:00] Dancing on a razor blade.} Rc3 {[%emt 0:05:28]} 45. Be4 {[%emt 0:00:00][%cal Ob6b7] Black must now prevent b7! Active counter play!} Bc5 $1 {[%emt 0:01:18][%csl LRb6,LRf2]} 46. Rxd2 {[%emt 0:00:00] Weighted Error Value: White=0.15 (very precise) /Black=0.11 (very precise) .  Mistake:       	White=3     	Black=2      Inaccurate:     	White=2     	Black=2      OK:         	White=12    	Black=9      Best:        	---       	Black=2      Strong:       	White=1     	Black=2} 1/2-1/2